[Event "1st Capablanca Memorial 2017"]
[Site "Heraklion"]
[Date "2017.04.20"]
[Round "5"]
[White "Taylor, Adam C"]
[Black "Triantos, Konstantinos"]
[Result "1-0"]
[ECO "A36"]
[WhiteElo "2231"]
[BlackElo "2051"]
[Annotator "TA"]
[PlyCount "87"]
[EventDate "2017.??.??"]
[EventType "tourn"]
[EventCountry "GRE"]
[SourceTitle "playchess.com"]
[Source "ChessBase"]
[SourceQuality "1"]
[TimeControl "40/5400+30:1800+30"]

1. Nf3 {[%emt 0:00:00]} c5 {[%emt 0:00:28]} 2. g3 {[%emt 0:00:00]} g6 {[%emt 0:00:06]} 3. c4 {[%emt 0:01:09]} Bg7 {[%emt 0:00:29]} 4. Nc3 {[%emt 0:00:13]} Nc6 {[%emt 0:00:07]} 5. Bg2 {[%emt 0:03:52]} e6 {[%emt 0:00:41]} 6. O-O {[%emt 0:00:48]} Nge7 {[%emt 0:00:20]} 7. d3 {[%emt 0:00:22]} O-O {[%emt 0:10:36]} 8. e4 {[%emt 0:17:23]} d6 {[%emt 0:03:25] LiveBook: 41 Games} 9. Be3 {[%emt 0:06:25]} Nd4 {[%emt 0:14:19] A36: Symmetrical English vs ...g6: 4 Bg2 Bg7} 10. Rc1 $146 {[%emt 0:00:14]} (10. Rb1 Nec6 11. a3 Rb8 12. Ne2 Nxf3+ 13. Bxf3 Bxb2 14. Rxb2 Qf6 15. d4 Qxf3 16. Nc3 Qf6 17. e5 {0-1 (58) Kovalev,D (2481)-Khismatullin,D (2664) Moscow 2012}) 10... Nec6 {[%emt 0:01:12]} 11. a3 {[%emt 0:00:52]} a6 {[%emt 0:01:09]} 12. b4 {[%emt 0:08:39]} Bd7 {[%emt 0:10:45]} 13. Bxd4 {[%emt 0:06:16]} Nxd4 {[%emt 0:03:31]} 14. Nxd4 {[%emt 0:00:06]} Bxd4 {[%emt 0:01:34]} 15. Qb3 {[%emt 0:01:34]} Rb8 {[%emt 0:05:09]} 16. Ne2 {[%emt 0:02:13]} Bf6 {[%emt 0:06:27]} 17. Rfd1 {[%emt 0:03:15]} b5 {[%emt 0:05:42]} 18. cxb5 {[%emt 0:01:43]} cxb4 {[%emt 0:04:17]} 19. e5 {[%emt 0:05:47]} Bxe5 {[%emt 0:02:03]} 20. d4 {[%emt 0:03:41]} Bxb5 {[%emt 0:05:49]} 21. dxe5 {[%emt 0:00:21]} Bxe2 {[%emt 0:00:04]} 22. Rd2 $1 {[%emt 0:00:31]} bxa3 {[%emt 0:00:20]} 23. Qxa3 {[%emt 0:00:25]} Bb5 {[%emt 0:01:16]} 24. exd6 {[%emt 0:00:32]} Qf6 {[%emt 0:02:53]} 25. d7 {[%emt 0:14:03]} Rfd8 {[%emt 0:03:14]} 26. Bc6 {[%emt 0:00:21]} Bxc6 {[%emt 0:04:53]} 27. Rxc6 {[%emt 0:00:09]} Rb7 {[%emt 0:00:23]} 28. Rcd6 {[%emt 0:02:23]} Qe7 {[%emt 0:01:00]} 29. Qxa6 {[%emt 0:00:36]} Rc7 {[%emt 0:03:22]} 30. Qd3 {[%emt 0:03:02]} Qf6 {[%emt 0:01:36]} 31. Rd1 {[%emt 0:02:03]} Qc3 {[%emt 0:02:16]} 32. Qe4 {[%emt 0:02:33]} Qc2 {[%emt 0:01:49]} 33. Qe3 {[%emt 0:07:29]} Qc5 {[%emt 0:01:49]} 34. Qd2 {[%emt 0:02:18]} Qb5 {[%emt 0:01:24]} 35. h4 {[%emt 0:00:05]} h5 {[%emt 0:02:06]} 36. Qd4 {[%emt 0:01:16]} Kh7 {[%emt 0:00:55]} 37. Kg2 {[%emt 0:01:23]} Qb7+ {[%emt 0:00:25]} 38. Kh2 {[%emt 0:00:30]} Qf3 {[%emt 0:00:58]} 39. Rd3 {[%emt 0:00:13]} Qb7 {[%emt 0:00:25]} 40. Qa4 {[%emt 0:00:00]} Rc1 {[%emt 0:00:31]} 41. Rd1 {[%emt 0:01:46]} Rc5 {[%emt 0:05:27]} 42. Qf4 {[%emt 0:09:03]} Rf5 {[%emt 0:00:44]} 43. Qe3 {[%emt 0:00:31]} Rd5 $2 {[%emt 0:03:23]} (43... Rf3 $11 44. Qd4 Rb3) 44. R1xd5 $18 {[%emt 0:01:49]} 1-0

[Event "1st Capablanca Memorial 2017"]
[Site "Heraklion"]
[Date "2017.04.21"]
[Round "5"]
[White "Anagnostopoulos, Konstantinos"]
[Black "Hristodoulou, Panagiotis"]
[Result "0-1"]
[ECO "D31"]
[WhiteElo "2201"]
[BlackElo "2278"]
[Annotator "RC"]
[PlyCount "114"]
[EventDate "2017.??.??"]
[EventType "tourn"]
[EventCountry "GRE"]
[SourceTitle "playchess.com"]
[Source "ChessBase"]
[SourceQuality "1"]
[TimeControl "40/5400+30:1800+30"]

1. d4 {[%emt 0:00:00]} d5 {[%emt 0:00:10]} 2. c4 {[%emt 0:00:00]} e6 {[%emt 0:00:07]} 3. Nc3 {[%emt 0:00:12]} c6 {[%emt 0:00:08]} 4. e4 {[%emt 0:00:10]} dxe4 {[%emt 0:00:24]} 5. Nxe4 {[%emt 0:00:13]} Bb4+ {[%emt 0:00:08]} 6. Bd2 {[%emt 0:00:13]} Qxd4 {[%emt 0:00:11]} 7. Bxb4 {[%emt 0:00:05]} Qxe4+ {[%emt 0:00:13]} 8. Be2 {[%emt 0:00:04]} a5 {[%emt 0:01:01]} 9. Bc3 {[%emt 0:01:18]} Ne7 {[%emt 0:01:51]} 10. Nf3 {[%emt 0:01:08]} O-O {[%emt 0:03:29]} 11. O-O {[%emt 0:01:35]} f6 {[%emt 0:00:55]} 12. Re1 {[%emt 0:02:24]} Qf4 {[%emt 0:06:00]} 13. Bd3 {[%emt 0:00:30]} c5 {[%emt 0:12:13]} 14. Qc2 {[%emt 0:02:10]} g6 {[%emt 0:01:17]} 15. Re4 {[%emt 0:45:47]} Qc7 {[%emt 0:00:42]} 16. Rae1 {[%emt 0:15:51]} Nbc6 {[%emt 0:03:44]} 17. Rxe6 {[%emt 0:10:23]} Bxe6 {[%emt 0:00:33]} 18. Rxe6 {[%emt 0:00:04]} Rad8 {[%emt 0:14:25]} 19. Qe2 {[%emt 0:04:19]} Rd6 {[%emt 0:01:33]} 20. h4 {[%emt 0:03:50]} Qd7 {[%emt 0:01:16]} 21. Rxd6 {[%emt 0:00:25]} Qxd6 {[%emt 0:00:06]} 22. h5 {[%emt 0:00:47]} Rd8 {[%emt 0:01:27]} 23. Bc2 {[%emt 0:03:00]} Nb4 {[%emt 0:05:05]} 24. hxg6 {[%emt 0:00:25]} hxg6 {[%emt 0:00:23]} 25. Bb3 {[%emt 0:04:44]} Kf7 {[%emt 0:02:44]} 26. Qe4 {[%emt 0:01:03]} Qd3 {[%emt 0:06:56]} 27. Qh4 {[%emt 0:02:08]} Qb1+ {[%emt 0:00:11]} 28. Kh2 {[%emt 0:00:23]} g5 {[%emt 0:00:11]} 29. Qh5+ {[%emt 0:00:42]} Qg6 {[%emt 0:00:03]} 30. Qxg6+ {[%emt 0:00:33]} Nxg6 {[%emt 0:00:47]} 31. a3 {[%emt 0:00:07]} Nc6 {[%emt 0:00:05]} 32. Ba4 {[%emt 0:00:52]} Nge7 {[%emt 0:01:34]} 33. Nd2 {[%emt 0:00:28]} b6 {[%emt 0:00:36]} 34. f4 {[%emt 0:00:31]} gxf4 {[%emt 0:00:21]} 35. Kg1 {[%emt 0:00:29]} Nd4 {[%emt 0:00:38]} 36. Kf2 {[%emt 0:00:02]} Nef5 {[%emt 0:01:34]} 37. Bd1 {[%emt 0:00:50]} Ng3 {[%emt 0:00:38]} 38. b4 {[%emt 0:00:33]} axb4 {[%emt 0:00:06]} 39. axb4 {[%emt 0:00:03]} f5 {[%emt 0:00:10]} 40. bxc5 {[%emt 0:00:00]} bxc5 {[%emt 0:00:12]} 41. Ba5 {[%emt 0:05:32]} Ra8 {[%emt 0:05:52]} 42. Bc7 {[%emt 0:00:45]} Nh1+ {[%emt 0:02:04]} 43. Ke1 {[%emt 0:02:25]} Ne6 {[%emt 0:00:26]} 44. Be5 {[%emt 0:00:34]} Ng3 {[%emt 0:02:29]} 45. Bf3 {[%emt 0:01:38]} Ra2 {[%emt 0:00:41]} 46. Bd5 {[%emt 0:00:17]} Ke7 {[%emt 0:00:13]} 47. Bf3 {[%emt 0:11:27]} Nd4 {[%emt 0:07:24]} 48. Bxf4 {[%emt 0:00:18]} Ra1+ {[%emt 0:00:10]} 49. Bd1 {[%emt 0:04:58]} Ne4 {[%emt 0:07:15]} 50. Nxe4 {[%emt 0:01:58]} fxe4 {[%emt 0:00:03]} 51. Kd2 {[%emt 0:00:18]} Ra3 {[%emt 0:00:02]} 52. Bg4 {[%emt 0:01:05]} Rd3+ {[%emt 0:00:13]} 53. Ke1 {[%emt 0:00:21]} e3 {[%emt 0:00:02]} 54. Be2 {[%emt 0:01:13]} Ra3 {[%emt 0:00:51]} 55. Bd1 {[%emt 0:01:06]} Ra1 {[%emt 0:00:22]} 56. Bg5+ {[%emt 0:00:30]} Ke6 {[%emt 0:00:06]} 57. Bxe3 {[%emt 0:01:11]} Nc2+ {[%emt 0:00:05]} 0-1

[Event "1st Capablanca Memorial 2017"]
[Site "Heraklion"]
[Date "2017.04.21"]
[Round "5"]
[White "Balokas, Dimitrios"]
[Black "Langrock, Hannes"]
[Result "1/2-1/2"]
[ECO "A14"]
[WhiteElo "2184"]
[BlackElo "2387"]
[Annotator "RC"]
[PlyCount "48"]
[EventDate "2017.??.??"]
[EventType "tourn"]
[EventCountry "GRE"]
[SourceTitle "playchess.com"]
[Source "ChessBase"]
[SourceQuality "1"]
[TimeControl "40/5400+30:1800+30"]

1. Nf3 {[%emt 0:00:00]} e6 {[%emt 0:00:33]} 2. g3 {[%emt 0:00:00]} d5 {[%emt 0:01:16]} 3. Bg2 {[%emt 0:00:00]} Nf6 {[%emt 0:00:48]} 4. O-O {[%emt 0:00:10]} Be7 {[%emt 0:00:32]} 5. c4 {[%emt 0:00:32]} O-O {[%emt 0:00:16]} 6. b3 {[%emt 0:01:05]} c5 {[%emt 0:00:24]} 7. Bb2 {[%emt 0:00:45]} Nc6 {[%emt 0:01:08]} 8. e3 {[%emt 0:00:12]} b6 {[%emt 0:01:34]} 9. Qe2 {[%emt 0:13:56]} Ba6 {[%emt 0:00:41]} 10. d3 {[%emt 0:03:44]} Qd7 {[%emt 0:02:44]} 11. Rd1 {[%emt 0:04:25]} Rfd8 {[%emt 0:03:54]} 12. Nbd2 {[%emt 0:13:00]} Rac8 {[%emt 0:00:51]} 13. Rac1 {[%emt 0:01:04]} h6 {[%emt 0:03:08]} 14. Nf1 {[%emt 0:03:37]} Qc7 {[%emt 0:14:36]} 15. Ba1 {[%emt 0:03:15]} Rd7 {[%emt 0:07:49]} 16. Qb2 {[%emt 0:03:33]} dxc4 {[%emt 0:04:33]} 17. dxc4 {[%emt 0:11:04]} Rcd8 {[%emt 0:02:42]} 18. Rxd7 {[%emt 0:00:50]} Qxd7 {[%emt 0:05:17]} 19. Rc2 {[%emt 0:08:45]} Qd1 {[%emt 0:00:34]} 20. Rc1 {[%emt 0:00:55]} Qd3 {[%emt 0:01:56]} 21. Rc3 {[%emt 0:01:36]} Qh7 {[%emt 0:02:02]} 22. Rc2 {[%emt 0:02:39]} Nb4 {[%emt 0:11:52]} 23. Rd2 {[%emt 0:00:17]} Rxd2 {[%emt 0:00:03]} 24. Qxd2 {[%emt 0:06:17]} Nd3 {[%emt 0:19:26]} 1/2-1/2

[Event "1st Capablanca Memorial 2017"]
[Site "Heraklion"]
[Date "2017.04.21"]
[Round "6"]
[White "Langrock, Hannes"]
[Black "Anagnostopoulos, Konstantinos"]
[Result "1-0"]
[ECO "D45"]
[WhiteElo "2387"]
[BlackElo "2201"]
[Annotator "ChessBase"]
[PlyCount "37"]
[EventDate "2017.??.??"]
[EventType "tourn"]
[EventCountry "GRE"]
[SourceTitle "playchess.com"]
[Source "ChessBase"]
[SourceQuality "1"]
[TimeControl "40/5400+30:1800+30"]

1. d4 {[%emt 0:00:00]} d5 {[%emt 0:00:05]} 2. c4 {[%emt 0:00:16]} c6 {[%emt 0:00:40]} 3. Nf3 {[%emt 0:03:21]} Nf6 {[%emt 0:00:15]} 4. Nc3 {[%emt 0:00:04]} a6 {[%emt 0:00:57]} 5. e3 {[%emt 0:01:15]} e6 {[%emt 0:00:17]} 6. b3 {[%emt 0:01:28]} Bb4 {[%emt 0:03:01]} 7. Bd2 {[%emt 0:03:01]} Nbd7 {[%emt 0:01:42]} 8. Bd3 {[%emt 0:09:25]} Qe7 {[%emt 0:03:57]} 9. O-O {[%emt 0:03:14]} e5 {[%emt 0:08:43]} 10. dxe5 {[%emt 0:06:59]} Nxe5 {[%emt 0:02:32]} 11. Nxe5 {[%emt 0:00:30]} Qxe5 {[%emt 0:00:26]} 12. Nxd5 {[%emt 0:03:59]} Nxd5 {[%emt 0:01:24]} 13. cxd5 {[%emt 0:02:42]} Bxd2 {[%emt 0:03:40]} 14. Qxd2 {[%emt 0:00:04]} Qxd5 {[%emt 0:00:45]} 15. Rfd1 {[%emt 0:13:08]} O-O {[%emt 0:04:20]} 16. Qb4 {[%emt 0:08:41]} Qh5 {[%emt 0:05:10]} 17. Qe7 {[%emt 0:06:32]} Rb8 {[%emt 0:09:35]} 18. Bxh7+ {[%emt 0:02:46]} Kxh7 {[%emt 0:02:31]} 19. Qxf8 {[%emt 0:00:10]} 1-0

[Event "1st Capablanca Memorial 2017"]
[Site "Heraklion"]
[Date "2017.04.21"]
[Round "6"]
[White "Tsakiris, Haralambos"]
[Black "Vuelban, Virgilio"]
[Result "1-0"]
[ECO "B06"]
[WhiteElo "2250"]
[BlackElo "2257"]
[Annotator "ChessBase"]
[PlyCount "43"]
[EventDate "2017.??.??"]
[EventType "tourn"]
[EventCountry "GRE"]
[SourceTitle "playchess.com"]
[Source "ChessBase"]
[SourceQuality "1"]
[TimeControl "40/5400+30:1800+30"]

1. d4 {[%emt 0:00:00]} d6 {[%emt 0:03:34]} 2. e4 {[%emt 0:03:48]} g6 {[%emt 0:00:41]} 3. Nc3 {[%emt 0:01:09]} Bg7 {[%emt 0:00:33]} 4. f4 {[%emt 0:02:13]} a6 {[%emt 0:03:12]} 5. Nf3 {[%emt 0:00:06]} b5 {[%emt 0:00:04]} 6. Bd3 {[%emt 0:00:07]} Bb7 {[%emt 0:00:05]} 7. a4 {[%emt 0:07:57]} b4 {[%emt 0:00:53]} 8. Ne2 {[%emt 0:00:06]} Nd7 {[%emt 0:05:32]} 9. O-O {[%emt 0:00:53]} c5 {[%emt 0:07:19]} 10. c3 {[%emt 0:05:05]} cxd4 {[%emt 0:22:15]} 11. cxd4 {[%emt 0:01:19]} Ngf6 {[%emt 0:02:35]} 12. Ng3 {[%emt 0:04:28]} O-O {[%emt 0:06:33]} 13. a5 {[%emt 0:15:38]} e5 {[%emt 0:00:49]} 14. fxe5 {[%emt 0:07:16]} dxe5 {[%emt 0:00:14]} 15. d5 {[%emt 0:00:14]} Nc5 {[%emt 0:03:23]} 16. Be3 {[%emt 0:02:19]} Nfd7 {[%emt 0:01:48]} 17. Bc4 {[%emt 0:04:12]} Qc7 {[%emt 0:11:09]} 18. d6 {[%emt 0:06:38]} Qc6 {[%emt 0:00:04]} 19. Rc1 {[%emt 0:08:54]} h6 {[%emt 0:00:57]} 20. Nh4 {[%emt 0:01:44]} Qa4 {[%emt 0:03:52]} 21. Qg4 {[%emt 0:04:28]} g5 {[%emt 0:00:38]} 22. Nhf5 {[%emt 0:02:02]} 1-0

[Event "1st Capablanca Memorial 2017"]
[Site "Heraklion"]
[Date "2017.04.21"]
[Round "6"]
[White "Vanheirzeele, Daniel"]
[Black "Balokas, Dimitrios"]
[Result "1/2-1/2"]
[ECO "E01"]
[WhiteElo "2146"]
[BlackElo "2184"]
[Annotator "NA"]
[PlyCount "35"]
[EventDate "2017.??.??"]
[EventType "tourn"]
[EventCountry "GRE"]
[SourceTitle "playchess.com"]
[Source "ChessBase"]
[SourceQuality "1"]
[TimeControl "40/5400+30:1800+30"]

1. d4 {[%emt 0:05:39]} Nf6 {[%emt 0:00:10]} 2. Nf3 {[%emt 0:00:04]} e6 {[%emt 0:00:48]} 3. g3 {[%emt 0:00:18]} c5 {[%emt 0:01:57]} 4. Bg2 {[%emt 0:00:50]} cxd4 {[%emt 0:00:08]} 5. Nxd4 {[%emt 0:01:32]} d5 {[%emt 0:00:08]} 6. c4 {[%emt 0:00:09]} e5 {[%emt 0:00:07]} 7. Nf3 {[%emt 0:00:25]} d4 {[%emt 0:00:08]} 8. O-O {[%emt 0:00:11]} Nc6 {[%emt 0:00:04]} 9. e3 {[%emt 0:00:04]} Be7 {[%emt 0:00:06]} 10. exd4 {[%emt 0:01:01]} exd4 {[%emt 0:00:08]} 11. Bf4 {[%emt 0:00:36]} O-O {[%emt 0:00:09]} 12. Ne5 {[%emt 0:00:19]} Qb6 {[%emt 0:00:11]} 13. Re1 {[%emt 0:02:11]} Nxe5 {[%emt 0:01:02]} 14. Bxe5 {[%emt 0:05:36]} d3 {[%emt 0:00:09]} 15. Qb3 {[%emt 0:18:25]} Bc5 {[%emt 0:05:15]} 16. Qxb6 {[%emt 0:01:04]} axb6 {[%emt 0:00:08]} 17. Bxf6 {[%emt 0:04:18]} gxf6 {[%emt 0:00:09]} 18. Nc3 {[%emt 0:00:13]} 1/2-1/2

[Event "1st Capablanca Memorial 2017"]
[Site "Heraklion"]
[Date "2017.04.21"]
[Round "6"]
[White "Triantos, Konstantinos"]
[Black "Hristodoulou, Panagiotis"]
[Result "1/2-1/2"]
[ECO "C02"]
[WhiteElo "2051"]
[BlackElo "2278"]
[Annotator "ChessBase"]
[PlyCount "84"]
[EventDate "2017.??.??"]
[EventType "tourn"]
[EventCountry "GRE"]
[SourceTitle "playchess.com"]
[Source "ChessBase"]
[SourceQuality "1"]
[TimeControl "40/5400+30:1800+30"]

1. e4 {[%emt 0:00:00]} e6 {[%emt 0:00:13]} 2. d4 {[%emt 0:00:00]} d5 {[%emt 0:00:07]} 3. e5 {[%emt 0:00:00]} c5 {[%emt 0:00:21]} 4. c3 {[%emt 0:00:00]} Qb6 {[%emt 0:00:13]} 5. Nf3 {[%emt 0:00:00]} Nc6 {[%emt 0:00:06]} 6. a3 {[%emt 0:00:07]} Bd7 {[%emt 0:02:17]} 7. b4 {[%emt 0:00:39]} cxd4 {[%emt 0:00:12]} 8. cxd4 {[%emt 0:00:12]} Rc8 {[%emt 0:00:08]} 9. Bb2 {[%emt 0:02:45]} Nh6 {[%emt 0:00:11]} 10. Nc3 {[%emt 0:03:13]} Na5 {[%emt 0:00:07]} 11. Na4 {[%emt 0:00:07]} Qc6 {[%emt 0:00:08]} 12. Nc5 {[%emt 0:00:08]} Nc4 {[%emt 0:00:07]} 13. Bc1 {[%emt 0:00:26]} b6 {[%emt 0:13:07]} 14. Nxd7 {[%emt 0:00:11]} Qxd7 {[%emt 0:00:07]} 15. Bd3 {[%emt 0:03:01]} f5 {[%emt 0:10:37]} 16. exf6 {[%emt 0:03:25]} gxf6 {[%emt 0:00:11]} 17. Qe2 {[%emt 0:02:23]} Bg7 {[%emt 0:03:46]} 18. O-O {[%emt 0:03:37]} O-O {[%emt 0:00:52]} 19. Re1 {[%emt 0:05:44]} Rfe8 {[%emt 0:01:05]} 20. Nh4 {[%emt 0:24:09]} Qf7 {[%emt 0:17:34]} 21. Bf4 {[%emt 0:09:13]} Kh8 {[%emt 0:08:54]} 22. Qf3 {[%emt 0:22:14]} f5 {[%emt 0:06:46]} 23. Bxc4 {[%emt 0:10:54]} Rxc4 {[%emt 0:00:38]} 24. Rad1 {[%emt 0:00:20]} Ng4 {[%emt 0:05:13]} 25. h3 {[%emt 0:03:10]} Nf6 {[%emt 0:01:23]} 26. Qe3 {[%emt 0:01:00]} Ne4 {[%emt 0:02:02]} 27. Nf3 {[%emt 0:00:11]} Rc3 {[%emt 0:03:01]} 28. Rd3 {[%emt 0:00:57]} Rec8 {[%emt 0:00:13]} 29. Ne5 {[%emt 0:05:03]} Qh5 {[%emt 0:04:28]} 30. f3 {[%emt 0:01:18]} Rxd3 {[%emt 0:00:10]} 31. Nxd3 {[%emt 0:00:23]} Rc3 {[%emt 0:00:07]} 32. fxe4 {[%emt 0:00:39]} fxe4 {[%emt 0:00:15]} 33. Qf2 {[%emt 0:00:23]} Rxd3 {[%emt 0:00:18]} 34. Be5 {[%emt 0:00:19]} Qf5 {[%emt 0:00:18]} 35. Qh4 {[%emt 0:00:44]} Bxe5 {[%emt 0:14:43]} 36. Qd8+ {[%emt 0:00:06]} Kg7 {[%emt 0:00:13]} 37. dxe5 {[%emt 0:00:05]} Qxe5 {[%emt 0:08:01]} 38. Rf1 {[%emt 0:00:31]} Rf3 {[%emt 0:00:44]} 39. Qe7+ {[%emt 0:00:37]} Kg6 {[%emt 0:00:28]} 40. gxf3 {[%emt 0:00:00]} Qg3+ {[%emt 0:00:11]} 41. Kh1 {[%emt 0:01:02]} Qxh3+ {[%emt 0:00:07]} 42. Kg1 {[%emt 0:00:08]} Qg3+ {[%emt 0:00:20]} 1/2-1/2

[Event "1st Capablanca Memorial 2017"]
[Site "Heraklion"]
[Date "2017.04.22"]
[Round "7"]
[White "Hristodoulou, Panagiotis"]
[Black "Langrock, Hannes"]
[Result "1/2-1/2"]
[ECO "C12"]
[WhiteElo "2278"]
[BlackElo "2387"]
[Annotator "NA RC"]
[PlyCount "26"]
[EventDate "2017.??.??"]
[EventType "tourn"]
[EventCountry "GRE"]
[SourceTitle "playchess.com"]
[Source "ChessBase"]
[SourceQuality "1"]
[TimeControl "40/5400+30:1800+30"]

{[%evp 15,23,-3,10,0,32767,32767,7,28,52,46]} 1. e4 {[%emt 0:00:00]} e6 {[%emt 0:01:54]} 2. d4 {[%emt 0:00:00]} d5 {[%emt 0:00:23]} 3. Nc3 {[%emt 0:00:00]} Nf6 {[%emt 0:00:19]} 4. Bg5 {[%emt 0:00:09]} Bb4 {[%emt 0:00:12]} 5. e5 {[%emt 0:01:14]} h6 {[%emt 0:00:24]} 6. Bc1 {[%emt 0:00:11]} Ne4 {[%emt 0:00:37]} 7. Qg4 {[%emt 0:00:09]} g6 {[%emt 0:01:20]} 8. a3 {[%emt 0:00:13]} Bxc3+ {[%emt 0:01:14] LiveBook: 5 Games} 9. bxc3 {[%emt 0:00:10]} c5 {[%emt 0:00:31]} 10. Bd3 {[%emt 0:00:18]} h5 {[%emt 0:03:13]} 11. Qf4 {[%emt 0:08:45]} g5 {[%emt 0:01:03]} 12. Qe3 $14 {[%emt 0:00:33]} Nxc3 {[%emt 0:31:58]} 13. dxc5 {[%emt 0:11:29]} Na4 {[%emt 0:02:20]} 1/2-1/2

[Event "1st Capablanca Memorial 2017"]
[Site "Heraklion"]
[Date "2017.04.22"]
[Round "7"]
[White "Vuelban, Virgilio"]
[Black "Taylor, Adam C"]
[Result "0-1"]
[ECO "A31"]
[WhiteElo "2257"]
[BlackElo "2231"]
[Annotator "ChessBase"]
[PlyCount "86"]
[EventDate "2017.??.??"]
[EventType "tourn"]
[EventCountry "GRE"]
[SourceTitle "playchess.com"]
[Source "ChessBase"]
[SourceQuality "1"]
[TimeControl "40/5400+30:1800+30"]

1. d4 {[%emt 0:14:07]} Nf6 {[%emt 0:00:39]} 2. c4 {[%emt 0:00:10]} c5 {[%emt 0:04:30]} 3. Nf3 {[%emt 0:00:37]} cxd4 {[%emt 0:05:48]} 4. Nxd4 {[%emt 0:00:43]} e5 {[%emt 0:00:12]} 5. Nb5 {[%emt 0:00:39]} d5 {[%emt 0:00:35]} 6. cxd5 {[%emt 0:00:04]} Bc5 {[%emt 0:05:32]} 7. e3 {[%emt 0:01:22]} O-O {[%emt 0:00:37]} 8. N5c3 {[%emt 0:07:23]} e4 {[%emt 0:04:18]} 9. Be2 {[%emt 0:00:23]} Nbd7 {[%emt 0:01:25]} 10. a3 {[%emt 0:00:11]} a5 {[%emt 0:06:26]} 11. Nd2 {[%emt 0:06:20]} Re8 {[%emt 0:00:30]} 12. Qc2 {[%emt 0:17:36]} Qe7 {[%emt 0:01:00]} 13. d6 {[%emt 0:07:56]} Bxd6 {[%emt 0:02:54]} 14. Nb5 {[%emt 0:00:41]} Bb8 {[%emt 0:18:22]} 15. Nc7 {[%emt 0:00:35]} Bxc7 {[%emt 0:00:07]} 16. Qxc7 {[%emt 0:00:07]} Nc5 {[%emt 0:00:19]} 17. Qg3 {[%emt 0:04:33]} Nd3+ {[%emt 0:05:51]} 18. Bxd3 {[%emt 0:00:25]} Nh5 {[%emt 0:00:08]} 19. Bxe4 {[%emt 0:01:19]} Nxg3 {[%emt 0:00:09]} 20. hxg3 {[%emt 0:00:04]} h6 {[%emt 0:01:38]} 21. Bf3 {[%emt 0:00:58]} Be6 {[%emt 0:02:20]} 22. O-O {[%emt 0:00:08]} Rac8 {[%emt 0:01:18]} 23. Nb1 {[%emt 0:00:14]} Qf6 {[%emt 0:03:35]} 24. Nc3 {[%emt 0:00:12]} Red8 {[%emt 0:02:06]} 25. e4 {[%emt 0:00:51]} b5 {[%emt 0:07:22]} 26. Bf4 {[%emt 0:00:29]} b4 {[%emt 0:00:44]} 27. e5 {[%emt 0:00:17]} Qe7 {[%emt 0:02:57]} 28. Ne4 {[%emt 0:00:19]} Rc2 {[%emt 0:01:51]} 29. axb4 {[%emt 0:00:14]} Qxb4 {[%emt 0:02:04]} 30. Rfd1 {[%emt 0:01:21]} Rxd1+ {[%emt 0:01:53]} 31. Rxd1 {[%emt 0:00:09]} Rxb2 {[%emt 0:03:17]} 32. Rd8+ {[%emt 0:00:14]} Kh7 {[%emt 0:00:06]} 33. Nd6 {[%emt 0:01:48]} Qb6 {[%emt 0:10:07]} 34. Be4+ {[%emt 0:02:09]} Bf5 {[%emt 0:01:07]} 35. Nxf5 {[%emt 0:09:59]} Qxd8 {[%emt 0:00:05]} 36. Nxh6+ {[%emt 0:00:09]} g6 {[%emt 0:00:02]} 37. Nxf7 {[%emt 0:00:07]} Qd1+ {[%emt 0:00:03]} 38. Kh2 {[%emt 0:00:08]} Qh5+ {[%emt 0:00:22]} 39. Kg1 {[%emt 0:00:05]} Qd1+ {[%emt 0:00:50]} 40. Kh2 {[%emt 0:00:00]} Kg7 {[%emt 0:02:57]} 41. e6 {[%emt 0:00:24]} Qh5+ {[%emt 0:00:45]} 42. Kg1 {[%emt 0:00:06]} Re2 {[%emt 0:00:52]} 43. g4 {[%emt 0:00:21]} Re1# {[%emt 0:34:17]} 0-1

[Event "1st Capablanca Memorial 2017"]
[Site "Heraklion"]
[Date "2017.04.22"]
[Round "7"]
[White "Anagnostopoulos, Konstantinos"]
[Black "Vanheirzeele, Daniel"]
[Result "1-0"]
[ECO "E43"]
[WhiteElo "2201"]
[BlackElo "2146"]
[Annotator "NA"]
[PlyCount "47"]
[EventDate "2017.??.??"]
[EventType "tourn"]
[EventCountry "GRE"]
[SourceTitle "playchess.com"]
[Source "ChessBase"]
[SourceQuality "1"]
[TimeControl "40/5400+30:1800+30"]

{[%evp 12,46,-62,-62,32767,32767,2,24,56,58,69,33,62,32767,32767,32767,32767,32767,32767,32767,32767,32767,32767,32767,32767,32767,89,32767,85,73,229,211,265,32767,32767,303,375]} 1. d4 {[%emt 0:00:59]} Nf6 {[%emt 0:00:15]} 2. c4 {[%emt 0:00:18]} e6 {[%emt 0:00:31]} 3. Nc3 {[%emt 0:00:07]} Bb4 {[%emt 0:00:04]} 4. e3 {[%emt 0:00:12]} b6 {[%emt 0:01:15]} 5. Bd3 {[%emt 0:01:14]} Bb7 {[%emt 0:00:13]} 6. Nge2 {[%emt 0:00:38]} Bxg2 {[%emt 0:04:56]} 7. Rg1 {[%emt 0:00:14]} Be4 {[%emt 0:00:36]} 8. a3 {[%emt 0:00:30]} Bxd3 {[%emt 0:11:28]} 9. Qxd3 {[%emt 0:00:04]} Bf8 {[%emt 0:00:05] E43: Nimzo-Indian: Rubinstein: 4...b6} 10. e4 {[%emt 0:00:31]} d6 {[%emt 0:01:22] LiveBook: 5 Games} 11. f4 {[%emt 0:03:19]} (11. Bg5 Nbd7 12. O-O-O h6 13. Qh3 Rg8 14. Be3 e5 15. f4 Qe7 16. Nb5 O-O-O 17. Nxa7+ Kb7 18. Nb5 exf4 19. Nxf4 Qxe4 20. Nc3 Qc6 21. d5 {1-0 (21) Werle,J (2591)-Schebler,G (2453) Antwerp 2008}) 11... e5 {[%emt 0:14:30]} 12. dxe5 $146 {[%emt 0:10:53]} (12. Be3 Nbd7 13. O-O-O exd4 14. Bxd4 Nc5 15. Bxc5 bxc5 16. e5 Nd7 17. Qe4 dxe5 18. Rxd7 Kxd7 {1-0 (35) Harakis,A (2159)-Ferretti,F (2287) Rome 2004}) 12... dxe5 {[%emt 0:02:51]} 13. Qxd8+ {[%emt 0:03:25]} Kxd8 {[%emt 0:00:30]} 14. fxe5 {[%emt 0:00:30]} Nfd7 {[%emt 0:00:30]} 15. e6 {[%emt 0:00:30]} fxe6 {[%emt 0:00:32]} 16. Nd4 {[%emt 0:01:41]} Kc8 {[%emt 0:12:32]} 17. Nxe6 {[%emt 0:01:58]} Bd6 {[%emt 0:01:21]} 18. Rxg7 {[%emt 0:01:31]} Bxh2 {[%emt 0:15:41]} (18... Be5 $11 {remains equal.} 19. Rf7 Re8) 19. Bf4 {[%emt 0:00:39]} Bxf4 {[%emt 0:00:38]} 20. Nxf4 {[%emt 0:00:07]} Rf8 $2 {[%emt 0:05:08] [#]} (20... Ne5 $14) 21. Nfd5 $1 {[%emt 0:03:43]} Na6 {[%emt 0:08:09]} 22. b4 {[%emt 0:03:01]} c6 {[%emt 0:00:03]} 23. Ne7+ $18 {[%emt 0:01:09]} ({And not} 23. Rxh7 cxd5 24. cxd5 Nc7 $15) 23... Kc7 {[%emt 0:00:01]} 24. b5 {[%emt 0:02:24]} 1-0